bitfinex/quotes_SOLUSD_20220228
["timestamp","ask_amount","ask_price","bid_price","bid_amount"]
[1646019603808,1.45431606,87.117,87.033,6.0]
[1646019604009,6.04731606,87.117,87.033,6.0]
[1646019604409,54.19757728,87.116,87.033,6.0]
[1646019604609,54.19757728,87.116,87.04,17.2366]
[1646019604811,54.19757728,87.116,87.041,6.0]
[1646019605411,1.7825695,87.115,87.041,6.0]
[1646019606311,4.593,87.114,87.041,6.0]
[1646019606612,13.663,87.114,87.041,6.0]
[1646019608113,4.593,87.114,87.041,6.0]
[1646019609114,4.593,87.114,87.04,14.05]
[1646019609314,4.593,87.114,87.041,6.0]
[1646019609513,119.593,87.114,87.041,6.0]
[1646019609713,1.46060574,87.113,87.041,6.0]
[1646019609914,4.593,87.112,87.033,6.0]
[1646019615623,1.46060574,87.113,87.033,6.0]
[1646019619736,4.593,87.112,87.033,6.0]
[1646019625350,6.18788262,87.112,87.033,6.0]
[1646019625551,1.59488262,87.111,87.033,6.0]
[1646019625751,4.593,87.11,87.033,6.0]
[1646019626453,1.59488262,87.109,87.033,6.0]
[1646019626652,4.593,87.108,87.033,6.0]
[1646019626851,1.53694778,87.106,87.033,6.0]
[1646019627053,4.594,87.105,87.033,6.0]
[1646019627253,115.0,87.104,87.032,24.2534]
[1646019627453,1.59488262,87.101,87.011,24.2345]
[1646019627653,1.59488262,87.092,87.012,22.5722]
[1646019627854,1.79024946,87.09,87.012,22.5722]
[1646019628053,1.82865174,87.087,87.012,22.5722]
[1646019628254,115.0,87.084,87.012,22.5722]
[1646019628456,32.50641788,87.085,87.012,22.5722]
[1646019628457,4.595,87.083,87.012,22.5722]
[1646019628654,4.595,87.084,87.012,22.5722]
[1646019631159,6.3006759,87.084,87.012,22.5722]
[1646019632665,17.2476,87.08,87.012,22.5722]
[1646019632858,29.77538617,87.079,87.012,22.5722]
[1646019633061,1.52854963,87.078,87.012,22.5722]
[1646019633260,4.595,87.077,87.012,22.5722]
[1646019633660,4.595,87.077,87.012,79.8511292]
[1646019635860,1.46447229,87.077,87.012,57.2789292]
[1646019636061,1.46447229,87.077,87.005,4.593]
[1646019636261,1.46447229,87.077,87.006,6.0]
[1646019636463,4.595,87.076,87.006,6.0]
[1646019636863,4.595,87.076,87.005,4.593]
[1646019637063,115.0,87.069,87.005,4.593]
[1646019637267,1.37262545,87.066,87.005,4.593]
[1646019637665,4.595,87.065,87.005,4.593]
[1646019638966,4.595,87.065,86.98,22.9503]
[1646019639465,115.0,87.059,86.98,22.9503]
[1646019639667,6.42886446,87.058,86.965,22.9269]
[1646019639868,1.58838374,87.056,86.966,6.0]
[1646019640071,1.70078488,87.054,86.967,55.29071235]
[1646019640270,4.597,87.053,86.968,6.0]
[1646019640871,17.2542,87.05,86.968,6.0]
[1646019641071,1.6135549,87.048,86.968,6.0]
[1646019641271,4.597,87.047,86.968,6.0]
[1646019641470,4.597,87.047,86.967,55.29071235]
[1646019641670,116.51816034,87.045,86.967,55.29071235]
[1646019641872,115.0,87.043,86.967,55.29071235]
[1646019642171,115.0,87.041,86.967,55.29071235]
[1646019642374,115.0,87.039,86.941,24.9714]
[1646019642572,115.0,87.037,86.941,24.9714]
[1646019642871,1.71358006,87.034,86.941,24.9714]
[1646019643073,4.598,87.033,86.941,24.9714]
[1646019643373,1.53220508,87.032,86.941,24.9714]
[1646019643593,17.2597,87.02,86.941,24.9714]
[1646019643872,1.43785476,87.016,86.941,24.9714]
[1646019644075,6.31311543,87.015,86.941,24.9714]
[1646019644273,1.71511543,87.015,86.941,24.9714]
[1646019644675,1.55952664,87.008,86.941,24.9714]
[1646019645078,1.46600375,87.006,86.941,24.9714]
[1646019645478,116.46600375,87.006,86.932,49.6813122]
[1646019645677,1.56230404,87.005,86.932,49.6813122]
[1646019645879,1.56230404,87.005,86.921,24.4367]
[1646019646080,116.79931613,86.999,86.921,24.4367]
[1646019646280,6.45203485,86.998,86.921,24.4367]
[1646019646481,8.51,86.998,86.921,24.4367]
[1646019646680,23.3844,86.997,86.921,24.4367]
[1646019646879,24.99633958,86.997,86.923,57.82582699]
[1646019647483,17.2653,86.99,86.923,57.82582699]
[1646019647680,54.19757728,86.989,86.923,57.82582699]
[1646019648883,1.37353507,86.988,86.923,57.82582699]
[1646019650984,116.37353507,86.988,86.923,57.82582699]
[1646019651400,1.37353507,86.988,86.923,57.82582699]
[1646019651601,116.37353507,86.988,86.923,57.82582699]
[1646019651901,1.37353507,86.988,86.923,57.82582699]
[1646019653100,71.71337728,86.989,86.923,57.82582699]
[1646019656606,71.71337728,86.989,86.924,6.0]
[1646019657406,71.71337728,86.989,86.922,6.0]
[1646019658410,71.71337728,86.989,86.923,57.098323]
[1646019658610,71.71337728,86.989,86.924,6.0]
[1646019663717,115.0,86.988,86.921,24.4367]
[1646019664017,115.0,86.979,86.921,24.4367]
[1646019664217,4.6,86.978,86.921,24.4367]
[1646019665016,4.6,86.978,86.903,54.3567465]
[1646019665217,115.0,86.976,86.904,24.3472]
[1646019665419,6.262645,86.975,86.904,24.3472]
[1646019666219,17.2693,86.97,86.904,24.3472]
[1646019666420,4.601,86.969,86.904,24.3472]
[1646019667227,115.0,86.959,86.883,24.8079]
[1646019667421,27.1402,86.958,86.884,22.553]
[1646019667623,22.5392,86.958,86.884,22.553]
[1646019668029,32.50641788,86.957,86.885,59.28674813]
[1646019668422,1.63128629,86.956,86.885,59.28674813]
[1646019668623,4.601,86.955,86.885,59.28674813]
[1646019669323,4.601,86.956,86.885,59.28674813]
[1646019669523,32.50641788,86.957,86.885,59.28674813]
[1646019670529,4.601,86.956,86.885,59.28674813]
[1646019670925,32.50641788,86.957,86.886,8.68785804]
[1646019671426,32.50641788,86.957,86.89,14.05]
[1646019671628,32.50641788,86.957,86.891,6.0]
[1646019672632,23.0091,86.985,86.891,133.7060807]
[1646019672829,4.6,87.011,86.892,3.05994615]
[1646019673034,25.59338007,87.011,86.895,2.47868674]
[1646019673329,4.6,87.027,86.898,2.67223271]
[1646019673529,4.6,87.027,86.896,28.7209]
[1646019673530,68.13052216,87.026,86.911,115.0]
[1646019673730,4.599,87.025,86.93,17.2571]
[1646019673929,4.599,87.025,86.931,33.09945651]
[1646019674130,6.28881372,87.025,86.931,30.8346]
[1646019674332,25.59338007,87.024,86.931,30.8346]
[1646019674533,6.01384013,87.023,86.931,30.8346]
[1646019674730,4.598,87.023,86.932,3.03020606]
[1646019674931,27.13946873,87.023,86.933,6.0]
[1646019675130,25.59338007,87.023,86.94,17.2564]
[1646019675332,68.13052216,87.026,86.942,47.98190503]
[1646019675536,68.13052216,87.026,86.943,8.46184925]
[1646019676131,68.13052216,87.026,86.945,2.58255846]
[1646019676330,68.13052216,87.026,86.946,6.0]
[1646019676530,68.13052216,87.026,86.96,17.2528]
[1646019676734,68.13052216,87.026,86.961,6.0]
[1646019678234,93.72390223,87.026,86.961,6.0]
[1646019679034,93.72390223,87.026,86.961,12.02]
[1646019681137,93.72390223,87.026,86.961,6.0]
[1646019681541,49.73228007,87.026,86.961,6.0]
[1646019681740,24.96510059,87.049,86.971,2.71742264]
[1646019681940,16.9676,87.06,86.972,30.1315]
[1646019682143,16.9676,87.06,86.973,2.46511301]
[1646019682443,17.3932,87.061,86.974,6.0]
[1646019682643,54.60896453,87.059,86.975,11.66409981]
[1646019682843,54.60896453,87.059,86.976,6.0]
[1646019683041,54.60896453,87.059,86.98,14.05]
[1646019683244,54.60896453,87.059,86.981,8.43392676]
[1646019684145,54.60896453,87.059,86.981,121.0]
[1646019684344,26.30258663,87.087,86.982,2.37827194]
[1646019684542,1.84168208,87.086,86.983,6.0]
[1646019684742,25.191406,87.086,86.983,6.0]
[1646019684962,1.52453248,87.085,86.983,6.0]
[1646019685162,26.24093248,87.085,86.985,2.75239764]
[1646019685361,65.03536475,87.084,86.986,6.0]
[1646019685561,65.03536475,87.084,86.99,31.2964]
[1646019685764,88.38508867,87.084,86.991,6.0]
[1646019686565,2.85020203,87.083,86.991,6.0]
[1646019686763,4.595,87.082,86.991,6.0]
[1646019688062,116.41379677,87.08,86.991,6.0]
[1646019688266,1.7440936,87.079,86.991,6.0]
[1646019688463,4.595,87.078,86.991,6.0]
[1646019688662,1.7440936,87.079,86.991,6.0]
[1646019688864,4.595,87.078,86.991,6.0]
[1646019689263,1.7440936,87.079,86.991,6.0]
[1646019689468,1.7440936,87.079,87.0,17.2446]
[1646019689663,1.7440936,87.079,87.002,46.46310486]
[1646019689864,1.7440936,87.079,87.003,6.0]
[1646019690065,17.1707,87.082,87.003,6.0]
[1646019690564,17.1707,87.082,87.01,17.2424]
[1646019690769,17.1707,87.082,87.011,6.0]
[1646019691667,17.1707,87.082,87.012,24.2941]
[1646019691866,17.1707,87.082,87.013,6.0]
[1646019694370,1.66406936,87.081,87.013,6.0]
[1646019695472,17.1707,87.082,87.013,6.0]
[1646019695875,1.55269062,87.081,87.013,6.0]
[1646019697976,24.90241454,87.081,87.013,6.0]
[1646019698179,116.73422174,87.08,87.013,6.0]
[1646019698377,121.0458819,87.079,87.012,24.2941]
[1646019698574,1.74828718,87.078,87.012,24.2941]
[1646019698775,4.595,87.077,87.012,24.2941]
[1646019698976,115.0,87.076,87.003,24.3393]
[1646019699175,116.83156107,87.069,86.98,17.2483]
[1646019699375,29.97956853,87.068,86.981,29.3772]
[1646019699576,1.56332795,87.067,86.981,29.3772]
[1646019699778,4.596,87.066,86.981,29.3772]
[1646019700075,4.596,87.066,86.982,55.34599876]
[1646019700275,27.94572392,87.066,86.983,6.0]
[1646019700477,1.51193104,87.065,86.983,6.0]
[1646019700675,4.596,87.064,86.983,6.0]
[1646019700878,115.0,87.059,86.982,55.34599876]
[1646019701177,115.0,87.056,86.982,55.34599876]
[1646019701376,115.0,87.054,86.982,55.34599876]
[1646019701576,115.0,87.052,86.982,55.34599876]
[1646019701877,1.62163832,87.051,86.982,55.34599876]
[1646019702075,4.596,87.05,86.982,55.34599876]
[1646019702576,1.62163832,87.051,86.982,55.34599876]
[1646019703379,4.596,87.05,86.982,55.34599876]
[1646019706582,1.62163832,87.051,86.982,55.34599876]
[1646019706783,1.62163832,87.051,86.982,62.66599876]
[1646019707283,17.3535,87.052,86.982,62.66599876]
[1646019707884,17.3535,87.052,86.983,6.0]
[1646019708183,17.3535,87.052,86.982,55.34599876]
[1646019710486,17.3535,87.052,86.983,6.0]
[1646019711191,26.26363041,87.057,86.983,6.0]
[1646019711387,43.68193041,87.057,86.983,8.61231875]
[1646019711887,26.26363041,87.057,86.983,8.61231875]
[1646019712491,26.26363041,87.057,86.99,17.2464]
[1646019712687,26.26363041,87.057,86.991,6.0]
[1646019713090,26.26363041,87.057,86.992,22.9981]
[1646019713289,26.26363041,87.057,86.993,6.0]
[1646019713489,23.1879,87.079,87.0,17.2446]
[1646019713692,23.1879,87.079,87.001,9.04268564]
[1646019713890,17.1707,87.082,87.001,6.0]
[1646019714091,4.595,87.094,87.001,6.0]
[1646019714292,23.7034,87.086,87.003,2.61251315]
[1646019714494,43.69841707,87.085,87.004,6.0]
[1646019715491,43.69841707,87.085,87.01,17.2412]
[1646019715692,43.69841707,87.085,87.012,4.30000608]
[1646019715890,43.69841707,87.085,87.013,6.0]
[1646019716093,43.69841707,87.085,87.014,24.0625]
[1646019716295,43.69841707,87.085,87.015,6.0]
[1646019716494,1.38804934,87.084,87.015,6.0]
[1646019716692,5.98304934,87.084,87.015,6.0]
[1646019716892,5.98304934,87.084,87.014,24.0625]
[1646019717093,2.74678921,87.083,87.014,24.0625]
[1646019717293,4.595,87.082,87.014,24.0625]
[1646019717594,6.42577383,87.084,87.014,24.0625]
[1646019717793,1.83077383,87.084,87.014,24.0625]
[1646019718611,4.595,87.083,87.014,24.0625]
[1646019718814,1.83077383,87.084,87.014,24.0625]
[1646019720214,119.57756304,87.084,87.014,24.0625]
[1646019720413,115.0,87.082,87.014,24.0625]
[1646019720613,115.0,87.08,87.014,24.0625]
[1646019720814,121.01433082,87.079,87.014,24.0625]
[1646019721112,1.46816935,87.078,87.014,24.0625]
[1646019721315,4.595,87.077,87.014,24.0625]
[1646019721513,4.595,87.077,87.012,4.30000608]
[1646019722114,1.79727853,87.075,87.012,4.30000608]
[1646019723615,6.39227853,87.075,87.012,4.30000608]
[1646019724315,1.79727853,87.075,87.012,4.30000608]
[1646019724716,24.9,87.076,87.012,4.30000608]
[1646019724916,24.9,87.076,87.013,6.0]
[1646019725315,24.9,87.076,87.014,24.0778]
[1646019725519,24.9,87.076,87.015,6.0]
[1646019732241,43.69841707,87.085,87.016,115.0]
[1646019732437,112.6,87.109,87.03,14.05]
[1646019732638,112.6,87.109,87.032,2.56866151]
[1646019732837,2.90251881,87.108,87.033,6.0]
[1646019733240,23.3906,87.107,87.033,6.0]
[1646019733443,58.36398268,87.106,87.032,6.0]
[1646019734443,58.36398268,87.106,87.04,17.2359]
[1646019734644,58.36398268,87.106,87.041,61.34599876]
[1646019735343,58.36398268,87.106,87.042,23.7566]
[1646019735542,58.36398268,87.106,87.043,6.0]
[1646019736244,58.36398268,87.106,87.042,23.7566]
[1646019736447,1.3775813,87.105,87.042,23.7566]
[1646019736648,4.27348057,87.105,87.042,23.7566]
[1646019736846,4.27348057,87.105,87.031,4.594]
[1646019736847,8.86648057,87.105,87.031,4.594]
[1646019737150,117.89589927,87.104,87.032,6.0]
[1646019737364,115.0,87.102,87.031,4.594]
[1646019737566,115.0,87.1,87.031,4.594]
[1646019737765,115.0,87.098,87.031,4.594]
[1646019738064,1.84047878,87.095,87.031,4.594]
[1646019738265,4.594,87.094,87.031,4.594]
[1646019738463,7.34078921,87.094,87.031,4.594]
[1646019738663,4.3370711,87.093,87.031,4.594]
[1646019738865,4.594,87.092,87.031,4.594]
[1646019739067,7.48989927,87.092,87.031,4.594]
[1646019739466,17.2457,87.09,87.031,4.594]
[1646019739669,6.41627231,87.089,87.031,4.594]
[1646019739866,9.31217158,87.089,87.031,4.594]
[1646019740267,2.89589927,87.088,87.031,4.594]
[1646019740468,4.594,87.087,87.031,4.594]
[1646019740767,7.48989927,87.087,87.031,4.594]
[1646019740967,2.89589927,87.087,87.031,4.594]
[1646019741168,1.82227231,87.089,87.031,4.594]
[1646019741570,2.88236508,87.088,87.031,4.594]
[1646019742369,2.88236508,87.098,87.031,4.594]
[1646019742570,2.88236508,87.098,87.031,12.304]
[1646019742769,2.88236508,87.105,87.031,12.304]
[1646019743171,4.594,87.104,87.031,12.304]
[1646019743372,2.88236508,87.105,87.031,12.304]
[1646019743570,2.88236508,87.103,87.031,12.304]
[1646019743771,2.88236508,87.103,87.031,4.594]
[1646019743972,17.2437,87.1,87.031,4.594]
[1646019744173,4.52666832,87.105,87.031,4.594]
[1646019744174,4.594,87.099,87.031,4.594]
[1646019744373,2.88236508,87.099,87.032,6.0]
[1646019744572,2.88236508,87.099,87.032,14.7]
[1646019744771,58.36398268,87.106,87.032,14.7]
[1646019745576,75.33838268,87.106,87.033,23.0887]
[1646019745777,1.42418667,87.105,87.034,6.0]
[1646019746083,119.32220602,87.105,87.033,23.0887]
[1646019746279,1.77784138,87.104,87.033,23.0887]
[1646019746680,2.89801935,87.103,87.033,23.0887]
[1646019747079,4.594,87.102,87.031,4.594]
[1646019747280,115.0,87.101,87.01,31.292]
[1646019747480,1.46280239,87.1,87.01,31.292]
[1646019747680,4.36082174,87.1,87.01,31.292]
[1646019747879,4.594,87.099,87.01,31.292]
[1646019748081,10.23880856,87.099,87.022,23.6355]
[1646019748281,1.75841804,87.098,87.022,23.6355]
[1646019748482,4.594,87.097,87.023,6.0]
[1646019748682,32.14630538,87.097,87.023,6.0]
[1646019748885,6.99775818,87.096,87.023,6.0]
[1646019749082,4.594,87.095,87.023,6.0]
[1646019749285,10.23880856,87.095,87.023,6.0]
[1646019749484,4.43663958,87.094,87.023,6.0]
[1646019749686,4.594,87.093,87.023,6.0]
[1646019749885,8.90853813,87.093,87.024,6.0]
[1646019750185,7.0515462,87.092,87.022,23.6355]
[1646019750386,5.97001396,87.091,87.022,23.6355]
[1646019750586,8.71680317,87.091,87.022,23.6355]
[1646019750886,117.74678921,87.09,87.022,23.6355]
[1646019751086,1.54859352,87.089,87.022,23.6355]
[1646019751285,4.29538273,87.089,87.022,23.6355]
[1646019751486,2.74678921,87.088,87.022,23.6355]
[1646019752692,4.594,87.087,87.022,23.6355]
[1646019753088,2.74678921,87.086,87.022,23.6355]
[1646019756121,4.594,87.094,87.022,23.6355]
[1646019756294,2.74678921,87.101,87.023,117.36778365]
[1646019756494,58.36398268,87.106,87.024,2.44264944]
[1646019756693,58.36398268,87.106,87.025,6.0]
[1646019756893,58.36398268,87.106,87.03,14.05]
[1646019757093,58.36398268,87.106,87.031,6.0]
[1646019757299,58.36398268,87.106,87.031,8.33882311]
[1646019757498,58.36398268,87.106,87.032,115.0]
[1646019757694,29.5473,87.127,87.041,115.0]
[1646019757895,24.9533,87.127,87.043,115.0]
[1646019758094,24.9533,87.127,87.044,123.34464089]
[1646019758295,17.584,87.131,87.045,2.8105604]
[1646019758496,112.6,87.143,87.061,115.0]
[1646019758695,51.74106884,87.142,87.063,115.0]
[1646019758894,51.74106884,87.142,87.064,123.89260208]
[1646019759095,2.89295472,87.141,87.065,2.72311325]
[1646019759295,2.89295472,87.141,87.066,6.0]
[1646019759498,51.74106884,87.142,87.07,31.2794]
[1646019759697,29.6656,87.143,87.072,115.0]
[1646019759901,4.75280642,87.21,87.09,175.58]
[1646019760100,3.19200959,87.228,87.121,115.0]
[1646019760300,57.01174787,87.252,87.132,2.45536558]
[1646019760497,57.01174787,87.252,87.171,115.0]
[1646019760700,56.51174787,87.252,87.181,115.0]
[1646019760899,52.33475204,87.251,87.184,2.43536754]
[1646019761096,52.33475204,87.251,87.185,6.0]
[1646019761297,52.33475204,87.251,87.2,14.05]
[1646019761500,52.33475204,87.251,87.201,6.0]
[1646019761701,52.33475204,87.251,87.2,14.05]
[1646019765305,17.1176,87.27,87.2,16.97773264]
[1646019765505,17.1176,87.27,87.2,14.05]
[1646019765705,4.585,87.269,87.201,6.0]
[1646019766105,4.585,87.285,87.201,6.0]
[1646019766304,59.04497957,87.284,87.202,49.57048649]
[1646019766507,17.2096,87.28,87.203,6.0]
[1646019766704,1.85371876,87.279,87.203,6.0]
[1646019767305,4.583,87.283,87.203,6.0]
[1646019767506,59.04497957,87.284,87.203,6.0]
[1646019768911,60.68993241,87.284,87.203,6.0]
[1646019769310,1.433741,87.283,87.203,6.0]
[1646019769516,6.016741,87.283,87.201,6.0]
[1646019771529,17.2081,87.28,87.201,6.0]
[1646019771730,1.50988724,87.279,87.201,6.0]
[1646019772132,4.585,87.278,87.18,14.05]
[1646019772330,1.50988724,87.279,87.182,6.0]
[1646019772530,6.09488724,87.279,87.182,6.0]
[1646019772837,6.09488724,87.279,87.183,45.54848426]
[1646019773033,17.21,87.27,87.184,6.0]
[1646019773230,32.4411176,87.269,87.184,6.0]
[1646019773432,1.73566076,87.268,87.184,6.0]
[1646019773632,4.585,87.267,87.181,6.0]
[1646019773831,1.73566076,87.268,87.181,6.0]
[1646019774033,4.585,87.267,87.181,6.0]
[1646019774432,17.212,87.26,87.182,43.46355002]
[1646019774632,1.44552145,87.259,87.183,6.0]
[1646019774831,1.44552145,87.259,87.181,6.0]
[1646019775734,4.586,87.268,87.181,6.0]
[1646019775934,32.4411176,87.269,87.181,6.0]
[1646019776133,1.46930882,87.268,87.181,6.0]
[1646019776334,4.585,87.267,87.181,6.0]
[1646019776734,6.17855724,87.267,87.181,6.0]
[1646019778535,115.0,87.266,87.181,6.0]
[1646019778735,1.60026396,87.265,87.181,6.0]
[1646019780335,1.67498766,87.258,87.18,14.05]
[1646019780536,4.586,87.257,87.166,24.6222]
[1646019780740,4.586,87.257,87.167,6.0]
[1646019780937,4.586,87.257,87.167,5.5]
[1646019781137,4.586,87.257,87.167,56.52205075]
[1646019781338,115.0,87.266,87.167,56.52205075]
[1646019781540,17.214,87.25,87.167,56.52205075]
[1646019781740,57.10574392,87.249,87.167,5.5]
[1646019781937,1.63067451,87.248,87.167,5.5]
[1646019782138,4.586,87.247,87.167,5.5]
[1646019782539,6.23364732,87.247,87.167,5.5]
[1646019782740,1.64764732,87.247,87.166,24.6222]
[1646019783139,17.2159,87.24,87.166,24.6222]
[1646019783342,1.86155195,87.239,87.166,24.6222]
[1646019785443,6.44855195,87.239,87.166,24.6222]
[1646019785645,6.44855195,87.239,87.161,48.46593063]
[1646019787747,1.86155195,87.239,87.161,48.46593063]
[1646019789846,1.86155195,87.239,87.166,6.0]
[1646019790047,1.86155195,87.239,87.167,6.0]
[1646019790248,1.86155195,87.239,87.166,6.0]
[1646019791648,1.86155195,87.239,87.161,48.46593063]
[1646019792849,1.86155195,87.239,87.162,23.3187]
[1646019793848,1.86155195,87.239,87.166,6.0]
[1646019794050,17.2159,87.24,87.162,23.3187]
[1646019794250,4.587,87.239,87.166,6.0]
[1646019794749,6.39332406,87.239,87.162,23.3187]
[1646019795151,4.587,87.239,87.162,25.59268094]
[1646019795354,4.587,87.239,87.17,14.05]
[1646019795551,17.5892,87.248,87.171,6.0]
[1646019795950,17.5892,87.248,87.171,9.0855955]
[1646019797952,17.5892,87.248,87.171,6.0]
[1646019799553,9.531588,87.248,87.171,6.0]
[1646019804458,9.531588,87.248,87.18,17.2087]
[1646019804662,50.75219584,87.249,87.181,12.3979722]
[1646019806383,50.75219584,87.249,87.181,6.0]
[1646019806587,33.84988763,87.248,87.173,23.6143]
[1646019806782,1.59151569,87.246,87.14,14.05]
[1646019806983,4.586,87.245,87.14,14.05]
[1646019807184,32.37647109,87.245,87.14,14.05]
[1646019807386,1.72656986,87.243,87.14,14.05]
[1646019807586,116.60126192,87.239,87.15,14.05]
[1646019807784,1.63665513,87.238,87.15,14.05]
[1646019807987,1.67523422,87.236,87.099,2.57175782]
[1646019808186,1.6355237,87.228,87.082,2.39525928]
[1646019808387,4.589,87.227,87.1,41.32840797]
[1646019808590,17.2222,87.22,87.12,17.2206]
[1646019808788,1.4783228,87.219,87.121,16.59111311]
[1646019808985,1.4783228,87.219,87.123,3.08405801]
[1646019809192,16.96081223,87.22,87.124,115.0]
[1646019809388,23.5793,87.226,87.126,115.0]
[1646019809588,23.5793,87.226,87.131,115.0]
[1646019809787,23.5793,87.226,87.141,115.0]
[1646019809987,23.5793,87.226,87.145,115.0]
[1646019810189,4.588,87.234,87.144,43.92173101]
[1646019810190,4.588,87.234,87.147,2.5134267]
[1646019810389,40.73390133,87.228,87.151,115.0]
[1646019810590,40.73390133,87.228,87.15,16.74238374]
[1646019810591,40.73390133,87.228,87.154,2.84245089]
[1646019810792,40.73390133,87.228,87.157,2.99544039]
[1646019810990,40.73390133,87.228,87.16,14.05]
[1646019811193,40.73390133,87.228,87.161,8.66291844]
[1646019812293,40.73390133,87.228,87.161,16.28291844]
[1646019813893,58.07090133,87.228,87.161,16.28291844]
[1646019814094,58.07090133,87.228,87.161,6.0]
[1646019814302,40.73390133,87.228,87.161,6.0]
[1646019814896,40.73390133,87.228,87.162,2.74678921]
[1646019815099,40.73390133,87.228,87.163,6.0]
[1646019815297,24.3295,87.249,87.162,115.0]
[1646019815498,24.3295,87.249,87.171,115.0]
[1646019815698,23.0404,87.262,87.181,115.0]
[1646019815897,23.0404,87.262,87.19,14.05]
[1646019816098,17.5724,87.269,87.191,6.0]
[1646019816298,49.10875348,87.268,87.192,41.32840797]
[1646019816499,49.10875348,87.268,87.193,6.0]
[1646019816799,49.10875348,87.268,87.193,33.51388921]
[1646019817101,49.10875348,87.268,87.194,2.74678921]
[1646019817300,49.10875348,87.268,87.193,30.7671]
[1646019817301,49.10875348,87.268,87.195,6.0]
[1646019817500,49.10875348,87.268,87.193,30.7671]
[1646019817900,3.00706946,87.267,87.193,30.7671]
[1646019818401,49.10875348,87.268,87.193,30.7671]
[1646019819203,49.10875348,87.268,87.2,17.2048]
[1646019819405,49.10875348,87.268,87.21,14.05]
[1646019819605,49.10875348,87.268,87.212,13.53549486]
[1646019819805,49.10875348,87.268,87.213,8.73253898]
[1646019820604,49.10875348,87.268,87.21,14.05]
[1646019821204,49.10875348,87.268,87.195,2.25613404]
[1646019821406,65.88305348,87.268,87.196,6.0]
[1646019821611,49.10875348,87.268,87.2,14.05]
[1646019821806,49.10875348,87.268,87.201,6.0]
[1646019822209,49.10875348,87.268,87.202,2.74678921]
[1646019822406,49.10875348,87.268,87.203,6.0]
[1646019823207,49.10875348,87.268,87.204,6.0]
[1646019823408,49.10875348,87.268,87.201,6.0]
[1646019823611,49.10875348,87.268,87.21,17.2027]
[1646019823810,49.10875348,87.268,87.211,10.93597528]
[1646019824210,49.10875348,87.268,87.21,14.05]
[1646019824411,49.10875348,87.268,87.19,14.05]
[1646019824712,49.10875348,87.268,87.195,6.0]
[1646019825313,49.10875348,87.268,87.196,43.95053684]
[1646019825613,3.01760912,87.267,87.196,43.95053684]
[1646019825812,3.01760912,87.267,87.197,6.0]
[1646019826013,49.10875348,87.268,87.197,6.0]
[1646019826812,49.10875348,87.268,87.19,14.05]
[1646019827013,8.82512074,87.267,87.17,17.2095]
[1646019827215,11.83236669,87.267,87.17,17.2095]
[1646019827413,119.30510451,87.266,87.17,31.2595]
[1646019827612,115.0,87.264,87.17,31.2595]
[1646019827815,121.214392,87.263,87.191,41.02398639]
[1646019828013,1.67651849,87.262,87.191,41.02398639]
[1646019828413,10.33903516,87.261,87.191,41.02398639]
[1646019828713,1.36875427,87.259,87.191,41.02398639]
[1646019828915,5.95375427,87.259,87.191,41.02398639]
[1646019829116,2.74678921,87.258,87.191,41.02398639]
[1646019829314,4.585,87.257,87.191,41.02398639]
[1646019829516,6.07471548,87.257,87.191,41.02398639]
[1646019829715,3.00724595,87.256,87.191,41.02398639]
[1646019829914,4.585,87.255,87.191,41.02398639]
[1646019830214,1.78138636,87.253,87.191,41.02398639]
[1646019830514,3.00724595,87.252,87.191,41.02398639]
[1646019830714,17.2133,87.25,87.191,41.02398639]
[1646019830914,1.36727554,87.249,87.171,23.5511]